[Event "Titled Tuesday Blitz December 27 Late 2022"]
[White "Rengifo Blancas, Renzo Jhonathan"]
[Black "Rodriguez Fontecha, Marcos"]
[WhiteFideId "3807185"]
[BlackFideId "2256576"]
[WhiteElo "2131"]
[BlackElo "2309"]
[Result "0-1"]
[Round "06"]
[TimeControl "180+2"]
[Date "2022.12.27"]
[WhiteClock "0:00:12"]
[BlackClock "0:00:09"]

1. e4 {[%clk 0:03:00]}  d5 {[%clk 0:02:59]} 2. exd5 {[%clk 0:02:59]}  Qxd5 {[%clk 0:03:00]} 3. Nc3 {[%clk 0:02:59]}  Qd6 {[%clk 0:03:00]} 4. Bc4 {[%clk 0:03:00]}  Nf6 {[%clk 0:03:00]} 5. Nge2 {[%clk 0:02:59]}  Nbd7 {[%clk 0:02:58]} 6. d3 {[%clk 0:02:58]}  e5 {[%clk 0:02:55]} 7. Bg5 {[%clk 0:02:57]}  Nb6 {[%clk 0:02:54]} 8. Bb3 {[%clk 0:02:56]}  Be7 {[%clk 0:02:49]} 9. Ng3 {[%clk 0:02:50]}  c6 {[%clk 0:02:40]} 10. Qf3 {[%clk 0:02:35]}  Bg4 {[%clk 0:02:36]} 11. Qe3 {[%clk 0:02:35]}  Nfd5 {[%clk 0:02:32]} 12. Nge4 {[%clk 0:02:09]}  Qg6 {[%clk 0:02:12]} 13. Nxd5 {[%clk 0:01:50]}  Nxd5 {[%clk 0:01:35]} 14. Bxd5 {[%clk 0:01:49]}  Bxg5 {[%clk 0:01:25]} 15. Nxg5 {[%clk 0:01:40]}  cxd5 {[%clk 0:01:24]} 16. h3 {[%clk 0:01:29]}  f6 {[%clk 0:00:58]} 17. hxg4 {[%clk 0:01:20]}  Qxg5 {[%clk 0:00:58]} 18. Qc5 {[%clk 0:01:14]}  Qxg4 {[%clk 0:00:41]} 19. Qxd5 {[%clk 0:01:14]}  Rd8 {[%clk 0:00:32]} 20. Qxb7 {[%clk 0:01:14]}  O-O {[%clk 0:00:31]} 21. Qe4 {[%clk 0:01:10]}  Qxe4+ {[%clk 0:00:23]} 22. dxe4 {[%clk 0:01:11]}  Rd4 {[%clk 0:00:24]} 23. f3 {[%clk 0:01:09]}  Rb8 {[%clk 0:00:24]} 24. b3 {[%clk 0:01:09]}  Rc8 {[%clk 0:00:24]} 25. Rc1 {[%clk 0:01:07]}  Rcd8 {[%clk 0:00:23]} 26. O-O {[%clk 0:01:05]}  g6 {[%clk 0:00:18]} 27. Kh2 {[%clk 0:01:01]}  Kf7 {[%clk 0:00:17]} 28. c4 {[%clk 0:01:01]}  Rd2 {[%clk 0:00:17]} 29. Ra1 {[%clk 0:00:56]}  R8d3 {[%clk 0:00:13]} 30. Kg3 {[%clk 0:00:53]}  f5 {[%clk 0:00:14]} 31. exf5 {[%clk 0:00:53]}  gxf5 {[%clk 0:00:15]} 32. Rfe1 {[%clk 0:00:52]}  Kf6 {[%clk 0:00:15]} 33. Kh4 {[%clk 0:00:47]}  f4 {[%clk 0:00:15]} 34. Rg1 {[%clk 0:00:42]}  Rd7 {[%clk 0:00:14]} 35. g4 {[%clk 0:00:41]}  fxg3 {[%clk 0:00:14]} 36. Rxg3 {[%clk 0:00:36]}  Rh2+ {[%clk 0:00:13]} 37. Rh3 {[%clk 0:00:34]}  Rg2 {[%clk 0:00:12]} 38. Kh5 {[%clk 0:00:22]}  Rdg7 {[%clk 0:00:08]} 39. Rf1 {[%clk 0:00:12]}  R7g5+ {[%clk 0:00:08]} 40. Kh6 {[%clk 0:00:12]}  Rg6+ {[%clk 0:00:09]} 41. Kh5 {[%clk 0:00:12]}  R2g5+ {[%clk 0:00:08]} 42. Kh4 {[%clk 0:00:12]}  Rh6# {[%clk 0:00:09]} 0-1


[Site "https://www.chess.com"]

[Event "Titled Tuesday Blitz December 27 Late 2022"]
[White "Rian, Kapriaga"]
[Black "Novikova, Galina"]
[WhiteFideId "7103263"]
[BlackFideId "4157095"]
[WhiteElo "2089"]
[BlackElo "2073"]
[Result "1-0"]
[Round "06"]
[TimeControl "180+2"]
[Date "2022.12.27"]
[WhiteClock "0:00:13"]
[BlackClock "0:00:38"]

1. d4 {[%clk 0:03:00]}  e6 {[%clk 0:03:00]} 2. Nf3 {[%clk 0:03:01]}  f5 {[%clk 0:03:00]} 3. Nc3 {[%clk 0:03:00]}  Nf6 {[%clk 0:03:01]} 4. Bg5 {[%clk 0:03:00]}  Be7 {[%clk 0:03:01]} 5. Bxf6 {[%clk 0:02:58]}  Bxf6 {[%clk 0:03:02]} 6. e4 {[%clk 0:02:58]}  O-O {[%clk 0:02:59]} 7. Bd3 {[%clk 0:02:57]}  d6 {[%clk 0:02:57]} 8. Qe2 {[%clk 0:02:53]}  c6 {[%clk 0:02:48]} 9. e5 {[%clk 0:02:46]}  dxe5 {[%clk 0:02:38]} 10. dxe5 {[%clk 0:02:45]}  Be7 {[%clk 0:02:37]} 11. O-O-O {[%clk 0:02:41]}  Qa5 {[%clk 0:02:38]} 12. Kb1 {[%clk 0:02:40]}  Na6 {[%clk 0:02:32]} 13. h4 {[%clk 0:02:27]}  Bb4 {[%clk 0:02:31]} 14. Bxa6 {[%clk 0:02:16]}  Bxc3 {[%clk 0:02:28]} 15. Bc4 {[%clk 0:02:12]}  Bb4 {[%clk 0:02:08]} 16. Ng5 {[%clk 0:02:11]}  h6 {[%clk 0:01:54]} 17. f4 {[%clk 0:01:53]}  b5 {[%clk 0:01:37]} 18. Bxe6+ {[%clk 0:01:22]}  Bxe6 {[%clk 0:01:36]} 19. Nxe6 {[%clk 0:01:22]}  Rfe8 {[%clk 0:01:28]} 20. Nd4 {[%clk 0:01:21]}  c5 {[%clk 0:01:15]} 21. Nxf5 {[%clk 0:01:13]}  c4 {[%clk 0:01:15]} 22. Rd7 {[%clk 0:01:08]}  c3 {[%clk 0:00:49]} 23. Rxg7+ {[%clk 0:00:37]}  Kf8 {[%clk 0:00:45]} 24. Qh5 {[%clk 0:00:20]}  Re7 {[%clk 0:00:46]} 25. Qxh6 {[%clk 0:00:16]}  Rxg7 {[%clk 0:00:45]} 26. Qxg7+ {[%clk 0:00:14]}  Ke8 {[%clk 0:00:46]} 27. Rd1 {[%clk 0:00:13]}  Rd8 {[%clk 0:00:39]} 28. Qg8+ {[%clk 0:00:12]}  Bf8 {[%clk 0:00:37]} 29. Qe6+ {[%clk 0:00:12]}  Be7 {[%clk 0:00:38]} 30. Qxe7# {[%clk 0:00:13]} 1-0


[Site "https://www.chess.com"]

[Event "Titled Tuesday Blitz December 27 Late 2022"]
[White "Rose, Felix"]
[Black "Joubert, Dantelle"]
[WhiteFideId "5105722"]
[BlackFideId "14310813"]
[WhiteElo "2091"]
[BlackElo "1566"]
[Result "1-0"]
[Round "06"]
[TimeControl "180+2"]
[Date "2022.12.27"]
[WhiteClock "0:01:40"]
[BlackClock "0:00:01"]

1. e4 {[%clk 0:03:00]}  e5 {[%clk 0:02:55]} 2. Nf3 {[%clk 0:02:59]}  Nc6 {[%clk 0:02:55]} 3. Bb5 {[%clk 0:02:59]}  Nf6 {[%clk 0:02:54]} 4. d3 {[%clk 0:02:56]}  Bc5 {[%clk 0:02:53]} 5. O-O {[%clk 0:02:54]}  Nd4 {[%clk 0:02:32]} 6. Nxd4 {[%clk 0:02:48]}  Bxd4 {[%clk 0:02:32]} 7. c3 {[%clk 0:02:49]}  Bb6 {[%clk 0:02:30]} 8. Nd2 {[%clk 0:02:49]}  O-O {[%clk 0:02:26]} 9. Ba4 {[%clk 0:02:48]}  d5 {[%clk 0:02:16]} 10. h3 {[%clk 0:02:40]}  dxe4 {[%clk 0:01:33]} 11. dxe4 {[%clk 0:02:40]}  Nd7 {[%clk 0:01:21]} 12. Bc2 {[%clk 0:02:37]}  c6 {[%clk 0:01:14]} 13. Qf3 {[%clk 0:02:34]}  Qf6 {[%clk 0:01:09]} 14. Qg3 {[%clk 0:02:28]}  Qg6 {[%clk 0:01:00]} 15. Qf3 {[%clk 0:02:26]}  Qf6 {[%clk 0:00:57]} 16. Qe2 {[%clk 0:02:24]}  Re8 {[%clk 0:00:48]} 17. Nf3 {[%clk 0:02:19]}  h6 {[%clk 0:00:46]} 18. Be3 {[%clk 0:02:16]}  Nf8 {[%clk 0:00:39]} 19. Rfd1 {[%clk 0:02:12]}  Be6 {[%clk 0:00:32]} 20. a4 {[%clk 0:02:03]}  Ng6 {[%clk 0:00:27]} 21. a5 {[%clk 0:02:00]}  Bxe3 {[%clk 0:00:23]} 22. fxe3 {[%clk 0:02:00]}  Red8 {[%clk 0:00:21]} 23. a6 {[%clk 0:01:58]}  b6 {[%clk 0:00:20]} 24. Qf2 {[%clk 0:01:49]}  Qe7 {[%clk 0:00:15]} 25. Qg3 {[%clk 0:01:44]}  Qc7 {[%clk 0:00:07]} 26. h4 {[%clk 0:01:40]}  Rxd1+ {[%clk 0:00:01]} 27. Rxd1 {[%clk 0:01:40]} 1-0


[Site "https://www.chess.com"]

[Event "Titled Tuesday Blitz December 27 Late 2022"]
[White "Rosenberg, Evan S"]
[Black "Weisz, Bryan"]
[WhiteFideId "2019299"]
[BlackFideId "30934133"]
[WhiteElo "1956"]
[BlackElo "1973"]
[Result "0-1"]
[Round "06"]
[TimeControl "180+2"]
[Date "2022.12.27"]
[WhiteClock "0:00:03"]
[BlackClock "0:00:16"]

1. d4 {[%clk 0:03:00]}  Nf6 {[%clk 0:02:58]} 2. Nf3 {[%clk 0:03:00]}  Ne4 {[%clk 0:02:55]} 3. Bf4 {[%clk 0:02:56]}  c5 {[%clk 0:02:48]} 4. Nbd2 {[%clk 0:02:54]}  Nxd2 {[%clk 0:02:44]} 5. Qxd2 {[%clk 0:02:49]}  cxd4 {[%clk 0:02:43]} 6. Nxd4 {[%clk 0:02:45]}  Nc6 {[%clk 0:02:41]} 7. O-O-O {[%clk 0:02:39]}  d5 {[%clk 0:02:23]} 8. Nb5 {[%clk 0:02:31]}  e5 {[%clk 0:02:14]} 9. Qxd5 {[%clk 0:02:23]}  Qa5 {[%clk 0:01:06]} 10. Bd2 {[%clk 0:01:38]}  Qb6 {[%clk 0:00:47]} 11. Be3 {[%clk 0:01:12]}  Qa5 {[%clk 0:00:44]} 12. Bd2 {[%clk 0:00:11]}  Qb6 {[%clk 0:00:41]} 13. e3 {[%clk 0:00:08]}  Be6 {[%clk 0:00:35]} 14. Qe4 {[%clk 0:00:08]}  O-O-O {[%clk 0:00:24]} 15. Kb1 {[%clk 0:00:07]}  Bb4 {[%clk 0:00:18]} 16. Bd3 {[%clk 0:00:05]}  Bxd2 {[%clk 0:00:18]} 17. Rxd2 {[%clk 0:00:06]}  f5 {[%clk 0:00:17]} 18. Qa4 {[%clk 0:00:03]}  e4 {[%clk 0:00:16]} 0-1


[Site "https://www.chess.com"]

[Event "Titled Tuesday Blitz December 27 Late 2022"]
[White "Sailer, Mike"]
[Black "marik_spb"]
[WhiteFideId "2012901"]
[WhiteElo "2109"]
[BlackElo "2448"]
[Result "0-1"]
[Round "06"]
[TimeControl "180+2"]
[Date "2022.12.27"]
[WhiteClock "0:00:01"]
[BlackClock "0:00:19"]

1. d4 {[%clk 0:03:00]}  Nf6 {[%clk 0:02:59]} 2. Bf4 {[%clk 0:02:59]}  d5 {[%clk 0:02:58]} 3. e3 {[%clk 0:02:56]}  e6 {[%clk 0:02:56]} 4. Bd3 {[%clk 0:02:52]}  Bd6 {[%clk 0:02:56]} 5. Bg3 {[%clk 0:02:52]}  b6 {[%clk 0:02:56]} 6. Nf3 {[%clk 0:02:51]}  Bb7 {[%clk 0:02:56]} 7. O-O {[%clk 0:02:50]}  O-O {[%clk 0:02:55]} 8. c4 {[%clk 0:02:50]}  Nbd7 {[%clk 0:02:54]} 9. cxd5 {[%clk 0:02:50]}  Bxd5 {[%clk 0:02:48]} 10. Nc3 {[%clk 0:02:50]}  Bb7 {[%clk 0:02:45]} 11. Rc1 {[%clk 0:02:49]}  Bxg3 {[%clk 0:02:43]} 12. hxg3 {[%clk 0:02:48]}  c5 {[%clk 0:02:43]} 13. Qe2 {[%clk 0:02:47]}  Rc8 {[%clk 0:02:41]} 14. Rfd1 {[%clk 0:02:46]}  Qc7 {[%clk 0:02:38]} 15. e4 {[%clk 0:02:08]}  cxd4 {[%clk 0:02:35]} 16. Nxd4 {[%clk 0:02:05]}  Nc5 {[%clk 0:02:24]} 17. Bb1 {[%clk 0:01:58]}  Qe5 {[%clk 0:01:52]} 18. f4 {[%clk 0:01:40]}  Qh5 {[%clk 0:01:51]} 19. Qxh5 {[%clk 0:01:32]}  Nxh5 {[%clk 0:01:52]} 20. e5 {[%clk 0:01:21]}  Nxg3 {[%clk 0:01:44]} 21. Ndb5 {[%clk 0:01:12]}  Nce4 {[%clk 0:01:27]} 22. Bxe4 {[%clk 0:00:57]}  Nxe4 {[%clk 0:01:20]} 23. Nxe4 {[%clk 0:00:57]}  Bxe4 {[%clk 0:01:10]} 24. Rxc8 {[%clk 0:00:38]}  Rxc8 {[%clk 0:01:11]} 25. Nxa7 {[%clk 0:00:32]}  Ra8 {[%clk 0:01:11]} 26. Nb5 {[%clk 0:00:30]}  g5 {[%clk 0:01:09]} 27. a3 {[%clk 0:00:15]}  gxf4 {[%clk 0:01:07]} 28. Rd6 {[%clk 0:00:12]}  Rc8 {[%clk 0:01:00]} 29. Rd4 {[%clk 0:00:10]}  Rc1+ {[%clk 0:00:20]} 30. Kh2 {[%clk 0:00:10]}  f3 {[%clk 0:00:21]} 31. gxf3 {[%clk 0:00:06]}  Bxf3 {[%clk 0:00:22]} 32. Rd6 {[%clk 0:00:02]}  Bd5 {[%clk 0:00:21]} 33. Rxb6 {[%clk 0:00:02]}  Rc2+ {[%clk 0:00:21]} 34. Kg3 {[%clk 0:00:02]}  Rxb2 {[%clk 0:00:22]} 35. a4 {[%clk 0:00:01]}  Ra2 {[%clk 0:00:19]} 0-1


[Site "https://www.chess.com"]

[Event "Titled Tuesday Blitz December 27 Late 2022"]
[White "Samsonkin, Artiom"]
[Black "Gascon Del Nogal, Jose Rafael"]
[WhiteFideId "13503111"]
[BlackFideId "3902463"]
[WhiteElo "2420"]
[BlackElo "2459"]
[Result "1/2-1/2"]
[Round "06"]
[TimeControl "180+2"]
[Date "2022.12.27"]
[WhiteClock "0:00:15"]
[BlackClock "0:00:20"]

1. e4 {[%clk 0:03:00]}  c5 {[%clk 0:02:58]} 2. Nf3 {[%clk 0:03:00]}  d6 {[%clk 0:02:58]} 3. d4 {[%clk 0:03:01]}  cxd4 {[%clk 0:02:59]} 4. Qxd4 {[%clk 0:03:01]}  Nf6 {[%clk 0:03:00]} 5. Be2 {[%clk 0:02:56]}  Nc6 {[%clk 0:02:59]} 6. Qe3 {[%clk 0:02:56]}  g6 {[%clk 0:02:57]} 7. O-O {[%clk 0:02:56]}  Bg7 {[%clk 0:02:56]} 8. c4 {[%clk 0:02:57]}  O-O {[%clk 0:02:52]} 9. h3 {[%clk 0:02:57]}  Nd7 {[%clk 0:02:37]} 10. Nc3 {[%clk 0:02:57]}  Nc5 {[%clk 0:02:37]} 11. Rb1 {[%clk 0:02:56]}  f5 {[%clk 0:02:35]} 12. b4 {[%clk 0:02:23]}  Nxe4 {[%clk 0:02:33]} 13. Nxe4 {[%clk 0:02:18]}  fxe4 {[%clk 0:02:32]} 14. Ng5 {[%clk 0:02:18]}  Bf5 {[%clk 0:01:31]} 15. Bb2 {[%clk 0:02:13]}  Ne5 {[%clk 0:01:24]} 16. Nxe4 {[%clk 0:02:06]}  Qb6 {[%clk 0:01:16]} 17. c5 {[%clk 0:02:00]}  Qc6 {[%clk 0:01:13]} 18. Ng5 {[%clk 0:01:45]}  Bxb1 {[%clk 0:01:10]} 19. Rxb1 {[%clk 0:01:44]}  Bh6 {[%clk 0:00:35]} 20. Qb3+ {[%clk 0:01:17]}  Kh8 {[%clk 0:00:24]} 21. Nf7+ {[%clk 0:01:08]}  Rxf7 {[%clk 0:00:23]} 22. Qxf7 {[%clk 0:01:08]}  Bg7 {[%clk 0:00:24]} 23. Qxe7 {[%clk 0:01:01]}  Qe4 {[%clk 0:00:25]} 24. Re1 {[%clk 0:00:47]}  Qxb4 {[%clk 0:00:25]} 25. Rb1 {[%clk 0:00:37]}  Qe4 {[%clk 0:00:24]} 26. Re1 {[%clk 0:00:36]}  Qb4 {[%clk 0:00:24]} 27. Rb1 {[%clk 0:00:28]}  Qe4 {[%clk 0:00:20]} 28. Re1 {[%clk 0:00:15]}  Qb4 {[%clk 0:00:20]} 1/2-1/2


[Site "https://www.chess.com"]

[Event "Titled Tuesday Blitz December 27 Late 2022"]
[White "Senthil, Maran K"]
[Black "Araujo, Everson De Moura"]
[WhiteFideId "25035681"]
[BlackFideId "22737197"]
[WhiteElo "2209"]
[BlackElo "1944"]
[Result "1-0"]
[Round "06"]
[TimeControl "180+2"]
[Date "2022.12.27"]
[WhiteClock "0:01:20"]
[BlackClock "0:00:12"]

1. d4 {[%clk 0:03:00]}  d5 {[%clk 0:03:00]} 2. c4 {[%clk 0:02:59]}  e6 {[%clk 0:03:00]} 3. Nf3 {[%clk 0:02:59]}  Nf6 {[%clk 0:03:01]} 4. g3 {[%clk 0:03:00]}  Be7 {[%clk 0:03:00]} 5. Bg2 {[%clk 0:03:01]}  O-O {[%clk 0:03:01]} 6. O-O {[%clk 0:03:01]}  dxc4 {[%clk 0:03:02]} 7. Qa4 {[%clk 0:03:00]}  a6 {[%clk 0:03:00]} 8. Qxc4 {[%clk 0:03:01]}  b5 {[%clk 0:03:00]} 9. Qc2 {[%clk 0:03:01]}  Bb7 {[%clk 0:03:01]} 10. Bd2 {[%clk 0:03:01]}  Be4 {[%clk 0:03:00]} 11. Qc1 {[%clk 0:03:01]}  Bb7 {[%clk 0:02:47]} 12. Qc2 {[%clk 0:03:01]}  Be4 {[%clk 0:02:47]} 13. Qc1 {[%clk 0:03:02]}  Bb7 {[%clk 0:02:47]} 14. Bf4 {[%clk 0:02:58]}  Nd5 {[%clk 0:02:40]} 15. Nbd2 {[%clk 0:02:53]}  Nxf4 {[%clk 0:02:40]} 16. gxf4 {[%clk 0:02:54]}  Nd7 {[%clk 0:02:33]} 17. Nb3 {[%clk 0:02:54]}  Rc8 {[%clk 0:02:29]} 18. Na5 {[%clk 0:02:41]}  Bxf3 {[%clk 0:01:50]} 19. Bxf3 {[%clk 0:02:42]}  Nb8 {[%clk 0:01:50]} 20. e3 {[%clk 0:02:20]}  c5 {[%clk 0:01:47]} 21. Nb7 {[%clk 0:02:16]}  Qb6 {[%clk 0:01:34]} 22. Nxc5 {[%clk 0:02:15]}  Bxc5 {[%clk 0:01:35]} 23. dxc5 {[%clk 0:02:16]}  Rxc5 {[%clk 0:01:35]} 24. Qd1 {[%clk 0:02:10]}  Rd8 {[%clk 0:01:33]} 25. Qe2 {[%clk 0:02:05]}  Rdc8 {[%clk 0:01:28]} 26. Rfd1 {[%clk 0:02:04]}  Nc6 {[%clk 0:01:23]} 27. Rd6 {[%clk 0:02:01]}  Qb8 {[%clk 0:01:08]} 28. Rad1 {[%clk 0:02:01]}  Nb4 {[%clk 0:00:51]} 29. Qd2 {[%clk 0:01:45]}  Rc1 {[%clk 0:00:34]} 30. Qxb4 {[%clk 0:01:35]}  R8c4 {[%clk 0:00:23]} 31. Qd2 {[%clk 0:01:22]}  Rc8 {[%clk 0:00:12]} 32. Rxc1 {[%clk 0:01:20]} 1-0


[Site "https://www.chess.com"]

[Event "Titled Tuesday Blitz December 27 Late 2022"]
[White "Shapiro, Daniel"]
[Black "Bilan, Danila"]
[WhiteFideId "2001780"]
[BlackFideId "24161918"]
[WhiteElo "2284"]
[BlackElo "2303"]
[Result "0-1"]
[Round "06"]
[TimeControl "180+2"]
[Date "2022.12.27"]
[WhiteClock "0:00:36"]
[BlackClock "0:00:11"]

1. d4 {[%clk 0:03:00]}  d5 {[%clk 0:02:59]} 2. c4 {[%clk 0:03:01]}  c6 {[%clk 0:02:59]} 3. Nf3 {[%clk 0:03:00]}  Nf6 {[%clk 0:02:59]} 4. Qb3 {[%clk 0:03:01]}  e6 {[%clk 0:02:54]} 5. Nc3 {[%clk 0:02:59]}  Nbd7 {[%clk 0:02:49]} 6. Bg5 {[%clk 0:02:59]}  Be7 {[%clk 0:02:43]} 7. e3 {[%clk 0:02:58]}  O-O {[%clk 0:02:43]} 8. Rd1 {[%clk 0:02:56]}  b6 {[%clk 0:02:38]} 9. Qc2 {[%clk 0:02:49]}  Bb7 {[%clk 0:02:28]} 10. Bd3 {[%clk 0:02:42]}  Rc8 {[%clk 0:02:08]} 11. b3 {[%clk 0:02:27]}  h6 {[%clk 0:01:42]} 12. h4 {[%clk 0:02:19]}  c5 {[%clk 0:01:38]} 13. Bf4 {[%clk 0:01:53]}  dxc4 {[%clk 0:01:25]} 14. bxc4 {[%clk 0:01:51]}  Bxf3 {[%clk 0:01:07]} 15. gxf3 {[%clk 0:01:51]}  cxd4 {[%clk 0:01:07]} 16. exd4 {[%clk 0:01:51]}  Nh5 {[%clk 0:01:06]} 17. Be3 {[%clk 0:01:46]}  Bxh4 {[%clk 0:00:37]} 18. Ke2 {[%clk 0:01:45]}  Qf6 {[%clk 0:00:35]} 19. Ne4 {[%clk 0:01:37]}  Qe7 {[%clk 0:00:25]} 20. Rdg1 {[%clk 0:01:28]}  f5 {[%clk 0:00:25]} 21. Nd6 {[%clk 0:01:16]}  Qxd6 {[%clk 0:00:23]} 22. Rxh4 {[%clk 0:01:15]}  f4 {[%clk 0:00:17]} 23. Rxh5 {[%clk 0:01:09]}  fxe3 {[%clk 0:00:17]} 24. Rxh6 {[%clk 0:00:59]}  Qf4 {[%clk 0:00:15]} 25. Bh7+ {[%clk 0:00:53]}  Kf7 {[%clk 0:00:13]} 26. Qg6+ {[%clk 0:00:53]}  Ke7 {[%clk 0:00:12]} 27. Rg4 {[%clk 0:00:42]}  Qxh6 {[%clk 0:00:11]} 28. Qxh6 {[%clk 0:00:39]}  gxh6 {[%clk 0:00:12]} 29. Rg7+ {[%clk 0:00:40]}  Rf7 {[%clk 0:00:12]} 30. Rxf7+ {[%clk 0:00:39]}  Kxf7 {[%clk 0:00:13]} 31. Be4 {[%clk 0:00:39]}  exf2 {[%clk 0:00:12]} 32. Bd3 {[%clk 0:00:38]}  e5 {[%clk 0:00:10]} 33. d5 {[%clk 0:00:37]}  Nc5 {[%clk 0:00:10]} 34. Bf5 {[%clk 0:00:38]}  Rf8 {[%clk 0:00:09]} 35. Kxf2 {[%clk 0:00:38]}  Kf6 {[%clk 0:00:09]} 36. Bg4 {[%clk 0:00:37]}  Nb7 {[%clk 0:00:10]} 37. Ke3 {[%clk 0:00:37]}  Nd6 {[%clk 0:00:10]} 38. Kd3 {[%clk 0:00:37]}  Kg5 {[%clk 0:00:10]} 39. Be6 {[%clk 0:00:36]}  h5 {[%clk 0:00:11]} 0-1


[Site "https://www.chess.com"]

[Event "Titled Tuesday Blitz December 27 Late 2022"]
[White "Slade, Theodore"]
[Black "Stankovic, Ivan G"]
[WhiteFideId "426547"]
[BlackFideId "902837"]
[WhiteElo "1995"]
[BlackElo "2302"]
[Result "0-1"]
[Round "06"]
[TimeControl "180+2"]
[Date "2022.12.27"]
[WhiteClock "0:00:05"]
[BlackClock "0:00:18"]

1. d4 {[%clk 0:03:00]}  d5 {[%clk 0:02:59]} 2. c4 {[%clk 0:03:00]}  c6 {[%clk 0:02:58]} 3. Nc3 {[%clk 0:03:01]}  Nf6 {[%clk 0:02:59]} 4. e3 {[%clk 0:03:01]}  a6 {[%clk 0:02:59]} 5. Nf3 {[%clk 0:03:01]}  Bf5 {[%clk 0:02:58]} 6. Nh4 {[%clk 0:03:00]}  Bc8 {[%clk 0:02:54]} 7. Be2 {[%clk 0:02:58]}  h6 {[%clk 0:02:53]} 8. O-O {[%clk 0:02:56]}  g5 {[%clk 0:02:53]} 9. Nf3 {[%clk 0:02:57]}  Bf5 {[%clk 0:02:53]} 10. Bd3 {[%clk 0:02:54]}  Bxd3 {[%clk 0:02:49]} 11. Qxd3 {[%clk 0:02:55]}  Bg7 {[%clk 0:02:48]} 12. e4 {[%clk 0:02:50]}  dxe4 {[%clk 0:02:41]} 13. Nxe4 {[%clk 0:02:51]}  Nxe4 {[%clk 0:02:38]} 14. Qxe4 {[%clk 0:02:52]}  Nd7 {[%clk 0:02:37]} 15. Re1 {[%clk 0:02:48]}  Nf6 {[%clk 0:02:35]} 16. Qe2 {[%clk 0:02:42]}  e6 {[%clk 0:02:35]} 17. Be3 {[%clk 0:02:35]}  O-O {[%clk 0:02:35]} 18. h4 {[%clk 0:02:33]}  g4 {[%clk 0:02:28]} 19. Ne5 {[%clk 0:02:33]}  h5 {[%clk 0:02:27]} 20. Rad1 {[%clk 0:02:32]}  Nd7 {[%clk 0:02:20]} 21. Bg5 {[%clk 0:02:25]}  Qc7 {[%clk 0:01:59]} 22. Nxg4 {[%clk 0:02:04]}  hxg4 {[%clk 0:01:54]} 23. Qxg4 {[%clk 0:02:05]}  f5 {[%clk 0:01:55]} 24. Qh5 {[%clk 0:02:04]}  Nf6 {[%clk 0:01:54]} 25. Bxf6 {[%clk 0:01:46]}  Rxf6 {[%clk 0:01:54]} 26. Re3 {[%clk 0:01:46]}  Qf7 {[%clk 0:01:48]} 27. Qf3 {[%clk 0:01:40]}  Rd8 {[%clk 0:01:37]} 28. Red3 {[%clk 0:01:18]}  Rh6 {[%clk 0:01:35]} 29. g3 {[%clk 0:01:15]}  Qh5 {[%clk 0:01:27]} 30. Qf4 {[%clk 0:01:10]}  Rg6 {[%clk 0:01:27]} 31. Qc7 {[%clk 0:01:02]}  Bf6 {[%clk 0:01:17]} 32. Qxb7 {[%clk 0:00:55]}  Bxh4 {[%clk 0:01:16]} 33. Qxc6 {[%clk 0:00:52]}  f4 {[%clk 0:01:08]} 34. Qg2 {[%clk 0:00:22]}  fxg3 {[%clk 0:01:05]} 35. fxg3 {[%clk 0:00:23]}  Bxg3 {[%clk 0:01:01]} 36. Rxg3 {[%clk 0:00:15]}  Qxd1+ {[%clk 0:01:00]} 37. Kh2 {[%clk 0:00:16]}  Qh5+ {[%clk 0:00:52]} 38. Kg1 {[%clk 0:00:15]}  Rxg3 {[%clk 0:00:51]} 39. Qxg3+ {[%clk 0:00:16]}  Kh8 {[%clk 0:00:46]} 40. Qf4 {[%clk 0:00:12]}  Rg8+ {[%clk 0:00:42]} 41. Kf2 {[%clk 0:00:12]}  Qf5 {[%clk 0:00:43]} 42. Qxf5 {[%clk 0:00:10]}  exf5 {[%clk 0:00:44]} 43. Ke3 {[%clk 0:00:09]}  Rg4 {[%clk 0:00:43]} 44. c5 {[%clk 0:00:09]}  Kg7 {[%clk 0:00:34]} 45. c6 {[%clk 0:00:09]}  Kf6 {[%clk 0:00:34]} 46. b4 {[%clk 0:00:04]}  Ke6 {[%clk 0:00:32]} 47. a4 {[%clk 0:00:05]}  Kd6 {[%clk 0:00:19]} 48. b5 {[%clk 0:00:05]}  axb5 {[%clk 0:00:19]} 49. axb5 {[%clk 0:00:05]}  Rg1 {[%clk 0:00:15]} 50. Kf4 {[%clk 0:00:06]}  Rb1 {[%clk 0:00:16]} 51. Kxf5 {[%clk 0:00:04]}  Rxb5+ {[%clk 0:00:16]} 52. Ke4 {[%clk 0:00:04]}  Kxc6 {[%clk 0:00:16]} 53. Ke3 {[%clk 0:00:04]}  Kd5 {[%clk 0:00:17]} 54. Kd3 {[%clk 0:00:04]}  Rb3+ {[%clk 0:00:17]} 55. Kc2 {[%clk 0:00:05]}  Rb4 {[%clk 0:00:18]} 56. Kc3 {[%clk 0:00:05]}  Rxd4 {[%clk 0:00:18]} 0-1


[Site "https://www.chess.com"]